[Event "HUN-ch U8-U18 2019"]
[Site "Balatonlelle"]
[Date "2019.06.21"]
[Round "1.1"]
[White "Csajbok, Levente Tamas"]
[Black "Persanyi, Barnabas"]
[Result "0-1"]
[ECO "C92"]
[WhiteElo "1985"]
[BlackElo "2404"]
[Annotator "NA"]
[PlyCount "102"]
[EventDate "2019.06.21"]
[EventType "swiss"]
[EventCountry "HUN"]
[SourceTitle "playchess.com"]
[Source "ChessBase"]
[SourceQuality "1"]
[TimeControl "40/5400+30:1800+30"]

1. e4 {[%emt 0:00:04]} e5 {[%emt 0:00:33]} 2. Nf3 {[%emt 0:00:08]} Nc6 {[%emt 0:00:32]} 3. Bb5 {[%emt 0:00:08]} a6 {[%emt 0:00:21]} 4. Ba4 {[%emt 0:00:06]} Nf6 {[%emt 0:00:24]} 5. O-O {[%emt 0:00:15]} Be7 {[%emt 0:00:33]} 6. Re1 {[%emt 0:00:17]} b5 {[%emt 0:00:58]} 7. Bb3 {[%emt 0:00:10]} d6 {[%emt 0:00:17]} 8. c3 {[%emt 0:00:11]} O-O {[%emt 0:00:26]} 9. h3 {[%emt 0:00:16]} Nd7 {[%emt 0:01:14]} 10. d4 {[%emt 0:01:25]} Bb7 {[%emt 0:00:50]} 11. Nbd2 {[%emt 0:01:55]} exd4 {[%emt 0:01:07]} 12. cxd4 {[%emt 0:00:10]} Bf6 {[%emt 0:00:43]} 13. Nf1 {[%emt 0:01:35]} Na5 {[%emt 0:00:27]} 14. Bc2 {[%emt 0:00:29]} Re8 $11 {[%emt 0:00:18]} 15. Ng3 {[%emt 0:20:37]} g6 {[%emt 0:02:59]} 16. b4 {[%emt 0:04:07]} Nc4 {[%emt 0:04:07]} 17. Rb1 {[%emt 0:01:20]} h5 {[%emt 0:10:06]} 18. Qd3 {[%emt 0:05:56]} Nf8 {[%emt 0:09:31]} 19. Bh6 {[%emt 0:08:06]} h4 {[%emt 0:02:14]} 20. Nf1 {[%emt 0:03:07]} a5 {[%emt 0:12:27]} 21. a4 {[%emt 0:07:14]} Ba6 {[%emt 0:05:11]} 22. axb5 {[%emt 0:06:40]} Bxb5 {[%emt 0:00:51]} 23. bxa5 {[%emt 0:01:46]} c6 {[%emt 0:00:39]} 24. N1d2 {[%emt 0:15:10]} Nxa5 {[%emt 0:09:49]} 25. Qe3 {[%emt 0:01:05]} Ne6 {[%emt 0:03:29]} 26. e5 {[%emt 0:05:32]} dxe5 {[%emt 0:01:12]} 27. dxe5 {[%emt 0:00:05]} Be7 {[%emt 0:02:26]} 28. Red1 {[%emt 0:03:57]} Qc7 {[%emt 0:02:03]} 29. Ne4 {[%emt 0:04:27]} Nc4 {[%emt 0:01:35]} 30. Qc3 {[%emt 0:00:24]} Na3 {[%emt 0:05:13]} 31. Ra1 {[%emt 0:00:38]} Be2 {[%emt 0:00:54]} 32. Nf6+ {[%emt 0:00:53]} Bxf6 {[%emt 0:00:50]} 33. exf6 {[%emt 0:00:04]} Nxc2 {[%emt 0:01:36]} 34. Qxc2 {[%emt 0:00:07]} Rxa1 {[%emt 0:01:09]} 35. Rxa1 {[%emt 0:00:37]} Bxf3 {[%emt 0:00:06]} 36. gxf3 {[%emt 0:00:02]} Qe5 {[%emt 0:04:41]} 37. Ra3 {[%emt 0:01:41]} Qxf6 {[%emt 0:01:09]} 38. Qxc6 {[%emt 0:00:13]} Rd8 {[%emt 0:00:27]} 39. Ra8 {[%emt 0:00:40]} g5 {[%emt 0:02:30]} 40. Rxd8+ {[%emt 0:00:00]} Qxd8 {[%emt 0:00:00]} 41. Qc2 {[%emt 0:05:56]} Qf6 {[%emt 0:05:49]} 42. Qc8+ {[%emt 0:02:33]} Kh7 {[%emt 0:00:12]} 43. Bf8 {[%emt 0:00:23]} Qxf3 {[%emt 0:02:47]} 44. Qc2+ {[%emt 0:04:02]} Kg8 {[%emt 0:00:41]} 45. Bd6 {[%emt 0:08:30]} Qd5 {[%emt 0:12:37]} 46. Bb4 {[%emt 0:07:04]} Nf4 {[%emt 0:03:29]} 47. Qc8+ {[%emt 0:02:17]} Kh7 {[%emt 0:00:17]} 48. Qc2+ {[%emt 0:02:23]} Kg7 {[%emt 0:00:48]} 49. Qc3+ {[%emt 0:01:04]} Kg6 {[%emt 0:01:13]} 50. Qc2+ {[%emt 0:00:38]} f5 {[%emt 0:00:22]} 51. f3 {[%emt 0:04:52]} Qxf3 {[%emt 0:00:29]} 0-1

[Event "HUN-ch U8-U18 2019"]
[Site "Balatonlelle"]
[Date "2019.06.21"]
[Round "1.1"]
[White "Petervari, Szabolcs"]
[Black "Erdelyi, Borisz"]
[Result "1-0"]
[ECO "A01"]
[WhiteElo "1816"]
[BlackElo "1372"]
[Annotator "NA"]
[PlyCount "111"]
[EventDate "2019.06.21"]
[EventType "swiss"]
[EventCountry "HUN"]
[SourceTitle "playchess.com"]
[Source "ChessBase"]
[SourceQuality "1"]
[TimeControl "40/5400+30:1800+30"]

1. b3 {[%emt 0:00:04]} d5 {[%emt 0:00:56]} 2. Bb2 {[%emt 0:00:06]} e6 {[%emt 0:00:32]} 3. e3 {[%emt 0:00:07]} Nf6 {[%emt 0:00:24]} 4. Nf3 {[%emt 0:00:31]} Be7 {[%emt 0:01:45]} 5. d4 {[%emt 0:00:20]} O-O {[%emt 0:00:51]} 6. Bd3 {[%emt 0:01:56]} c5 {[%emt 0:01:21]} 7. Nbd2 {[%emt 0:04:25]} Nc6 {[%emt 0:03:25]} 8. O-O {[%emt 0:04:13]} Qc7 {[%emt 0:01:54]} 9. c4 {[%emt 0:06:16]} Re8 {[%emt 0:02:24]} 10. dxc5 {[%emt 0:02:50]} Nb4 {[%emt 0:05:32]} 11. Bb1 {[%emt 0:05:32]} Qxc5 {[%emt 0:01:12]} 12. a3 {[%emt 0:05:01]} Na6 {[%emt 0:01:12]} 13. b4 {[%emt 0:00:28]} Qc7 {[%emt 0:00:14]} 14. Be5 {[%emt 0:01:55]} Qd8 {[%emt 0:00:34]} 15. Qc2 {[%emt 0:03:46]} g6 {[%emt 0:00:12]} 16. cxd5 {[%emt 0:01:48]} exd5 {[%emt 0:00:45]} 17. Ba2 {[%emt 0:02:43]} Be6 {[%emt 0:00:22]} 18. Rac1 {[%emt 0:04:29]} Rc8 {[%emt 0:00:26]} 19. Qb2 {[%emt 0:00:23]} Rxc1 {[%emt 0:00:32]} 20. Rxc1 {[%emt 0:00:05]} Ne4 {[%emt 0:02:10]} 21. Nd4 {[%emt 0:05:26]} Nxd2 {[%emt 0:00:47]} 22. Qxd2 {[%emt 0:00:22]} Bd6 {[%emt 0:03:30]} 23. Bxd6 {[%emt 0:03:11]} Qxd6 {[%emt 0:00:12]} 24. Nb5 {[%emt 0:00:14]} Qb6 {[%emt 0:00:26]} 25. Nc3 {[%emt 0:03:57]} Rd8 {[%emt 0:00:44]} 26. Nxd5 {[%emt 0:11:20]} Bxd5 {[%emt 0:00:27]} 27. Bxd5 {[%emt 0:00:02]} Kf8 {[%emt 0:01:33]} 28. e4 {[%emt 0:01:26]} Qd6 {[%emt 0:02:45]} 29. Qh6+ {[%emt 0:00:22]} Kg8 {[%emt 0:00:11]} 30. Qe3 {[%emt 0:07:01]} Nc7 {[%emt 0:07:25]} 31. Bb3 {[%emt 0:08:49]} Nb5 {[%emt 0:02:15]} 32. Qf3 {[%emt 0:02:37]} Qd7 {[%emt 0:00:28]} 33. Rd1 {[%emt 0:02:14]} Nd4 {[%emt 0:02:08]} 34. Qf6 {[%emt 0:00:59]} Rc8 {[%emt 0:04:28]} 35. Qxd4 {[%emt 0:00:36]} Qxd4 {[%emt 0:00:40]} 36. Rxd4 {[%emt 0:00:01]} Rc3 {[%emt 0:00:09]} 37. Bd1 {[%emt 0:01:07]} Rxa3 {[%emt 0:00:15]} 38. g3 {[%emt 0:00:15]} b5 {[%emt 0:00:26]} 39. Be2 {[%emt 0:00:40]} a6 {[%emt 0:00:28]} 40. Kg2 {[%emt 0:00:00]} Kg7 {[%emt 0:00:00]} 41. f4 {[%emt 0:00:34]} f6 {[%emt 0:00:47]} 42. Rd7+ {[%emt 0:00:39]} Kg8 {[%emt 0:00:34]} 43. Ra7 {[%emt 0:00:19]} Ra2 {[%emt 0:00:14]} 44. Kf3 {[%emt 0:00:19]} Ra3+ {[%emt 0:00:08]} 45. Kg4 {[%emt 0:00:47]} h5+ {[%emt 0:00:21]} 46. Kh3 {[%emt 0:00:53]} Re3 {[%emt 0:00:41]} 47. Bd1 {[%emt 0:00:32]} Rxe4 {[%emt 0:02:07]} 48. Rxa6 {[%emt 0:00:33]} Rxb4 {[%emt 0:00:21]} 49. Rxf6 {[%emt 0:00:08]} Kg7 {[%emt 0:00:44]} 50. Rb6 {[%emt 0:00:05]} Rb2 {[%emt 0:00:35]} 51. Ba4 {[%emt 0:00:25]} b4 {[%emt 0:00:17]} 52. Be8 {[%emt 0:00:33]} b3 {[%emt 0:00:27]} 53. Ba4 {[%emt 0:00:37]} Ra2 {[%emt 0:00:25]} 54. Bxb3 {[%emt 0:00:09]} Rb2 {[%emt 0:00:05]} 55. Rb7+ {[%emt 0:00:16]} Kf6 {[%emt 0:00:26]} 56. Rf7# {[%emt 0:00:28]} 1-0

[Event "HUN-ch U8-U18 2019"]
[Site "Balatonlelle"]
[Date "2019.06.21"]
[Round "1.2"]
[White "Karacsonyi, Gellert"]
[Black "Magold, Victor"]
[Result "1-0"]
[ECO "B43"]
[WhiteElo "2304"]
[BlackElo "1968"]
[Annotator "NA"]
[PlyCount "49"]
[EventDate "2019.06.21"]
[EventType "swiss"]
[EventCountry "HUN"]
[SourceTitle "playchess.com"]
[Source "ChessBase"]
[SourceQuality "1"]
[TimeControl "40/5400+30:1800+30"]

1. e4 {[%emt 0:00:03]} c5 {[%emt 0:00:18]} 2. Nf3 {[%emt 0:00:06]} e6 {[%emt 0:00:08]} 3. d4 {[%emt 0:00:18]} cxd4 {[%emt 0:00:08]} 4. Nxd4 {[%emt 0:00:20]} a6 {[%emt 0:00:12]} 5. Nc3 {[%emt 0:00:10]} Qc7 {[%emt 0:00:13]} 6. a3 {[%emt 0:00:25]} Nf6 {[%emt 0:00:41]} 7. f4 {[%emt 0:01:13]} Nc6 {[%emt 0:02:34]} 8. Be3 {[%emt 0:00:14]} d6 {[%emt 0:05:58]} 9. Qf3 {[%emt 0:00:10]} Be7 {[%emt 0:00:21]} 10. O-O-O {[%emt 0:00:35]} O-O {[%emt 0:00:40]} 11. Nxc6 {[%emt 0:00:16]} bxc6 {[%emt 0:00:23]} 12. g4 {[%emt 0:00:09]} d5 {[%emt 0:01:12]} 13. Bd4 {[%emt 0:14:12]} dxe4 {[%emt 0:06:54]} 14. Nxe4 {[%emt 0:00:20]} Nd5 {[%emt 0:02:25]} 15. Be5 {[%emt 0:06:21]} Qb6 {[%emt 0:06:59]} 16. g5 {[%emt 0:12:27]} Bb7 {[%emt 0:32:44]} 17. Rd3 {[%emt 0:20:23]} f6 {[%emt 0:16:48]} 18. gxf6 {[%emt 0:07:12]} Bxf6 {[%emt 0:02:44]} 19. Nxf6+ {[%emt 0:06:01]} Nxf6 {[%emt 0:00:31]} 20. Rb3 {[%emt 0:00:39]} Qa7 {[%emt 0:01:02]} 21. Bc4 {[%emt 0:00:52]} Rae8 {[%emt 0:02:41]} 22. Qg2 {[%emt 0:04:24]} Ba8 {[%emt 0:02:56]} 23. Rg1 {[%emt 0:02:11]} c5 {[%emt 0:01:03]} 24. Qg5 {[%emt 0:00:25]} Qe7 {[%emt 0:01:49]} 25. Bd6 {[%emt 0:01:09]} 1-0

[Event "HUN-ch U8-U18 2019"]
[Site "Balatonlelle"]
[Date "2019.06.21"]
[Round "1.2"]
[White "Tancz, Janos Sr."]
[Black "Gyenes, Mate"]
[Result "0-1"]
[ECO "B02"]
[WhiteElo "1425"]
[BlackElo "1823"]
[Annotator "NA"]
[PlyCount "56"]
[EventDate "2019.06.21"]
[EventType "swiss"]
[EventCountry "HUN"]
[SourceTitle "playchess.com"]
[Source "ChessBase"]
[SourceQuality "1"]
[TimeControl "40/5400+30:1800+30"]

1. e4 {[%emt 0:00:04]} Nf6 {[%emt 0:00:09]} 2. Nc3 {[%emt 0:00:45]} d5 {[%emt 0:00:07]} 3. exd5 {[%emt 0:01:00]} Nxd5 {[%emt 0:00:09]} 4. Nxd5 {[%emt 0:00:43]} Qxd5 {[%emt 0:00:06]} 5. Qf3 {[%emt 0:00:14]} Be6 {[%emt 0:00:52]} 6. g3 {[%emt 0:05:03]} Nc6 {[%emt 0:01:34]} 7. Bg2 {[%emt 0:00:25]} Nb4 {[%emt 0:03:32]} 8. Qxd5 {[%emt 0:11:29]} Bxd5 {[%emt 0:00:48]} 9. Bxd5 {[%emt 0:00:55]} Nxd5 {[%emt 0:01:29]} 10. c3 {[%emt 0:02:19]} e5 {[%emt 0:00:33]} 11. Ne2 {[%emt 0:01:42]} e4 {[%emt 0:01:12]} 12. Nd4 {[%emt 0:00:56]} O-O-O {[%emt 0:00:38]} 13. f3 {[%emt 0:00:53]} Nb4 {[%emt 0:06:26]} 14. fxe4 {[%emt 0:03:08]} Rxd4 {[%emt 0:02:26]} 15. cxd4 {[%emt 0:00:53]} Nc2+ {[%emt 0:00:05]} 16. Kd1 {[%emt 0:00:13]} Nxa1 {[%emt 0:00:04]} 17. b3 {[%emt 0:00:26]} g6 {[%emt 0:02:06]} 18. Bb2 {[%emt 0:01:11]} Nxb3 {[%emt 0:00:11]} 19. axb3 {[%emt 0:00:10]} Bg7 {[%emt 0:00:04]} 20. Rf1 {[%emt 0:00:45]} f6 {[%emt 0:00:49]} 21. Kc2 {[%emt 0:00:47]} Re8 {[%emt 0:00:44]} 22. Re1 {[%emt 0:00:19]} Kd7 {[%emt 0:00:14]} 23. e5 {[%emt 0:01:23]} c6 {[%emt 0:02:51]} 24. Kd3 {[%emt 0:01:28]} fxe5 {[%emt 0:08:41]} 25. dxe5 {[%emt 0:00:30]} Ke6 {[%emt 0:00:10]} 26. Kc4 {[%emt 0:00:32]} Rf8 {[%emt 0:00:58]} 27. Re2 {[%emt 0:00:51]} Rf3 {[%emt 0:00:15]} 28. d4 {[%emt 0:00:31]} Bf8 {[%emt 0:00:23]} 0-1

[Event "HUN-ch U8-U18 2019"]
[Site "Balatonlelle"]
[Date "2019.06.21"]
[Round "1.3"]
[White "Demjen, Mark"]
[Black "Pribelszky, Bence"]
[Result "0-1"]
[ECO "B40"]
[WhiteElo "1944"]
[BlackElo "2244"]
[Annotator "NA"]
[PlyCount "70"]
[EventDate "2019.06.21"]
[EventType "swiss"]
[EventCountry "HUN"]
[SourceTitle "playchess.com"]
[Source "ChessBase"]
[SourceQuality "1"]
[TimeControl "40/5400+30:1800+30"]

1. e4 {[%emt 0:00:48]} c5 {[%emt 0:00:06]} 2. Nf3 {[%emt 0:00:07]} e6 {[%emt 0:00:07]} 3. c4 {[%emt 0:00:08]} Nc6 {[%emt 0:00:11]} 4. Nc3 {[%emt 0:00:12]} Nf6 {[%emt 0:00:13]} 5. Be2 {[%emt 0:00:17]} d5 {[%emt 0:00:49]} 6. exd5 {[%emt 0:00:10]} exd5 {[%emt 0:00:07]} 7. d4 {[%emt 0:00:04]} cxd4 {[%emt 0:01:05]} 8. Nxd4 {[%emt 0:00:22]} Bc5 {[%emt 0:00:09]} 9. Nxc6 {[%emt 0:04:41]} bxc6 {[%emt 0:00:16]} 10. cxd5 {[%emt 0:00:20]} cxd5 {[%emt 0:00:17]} 11. O-O {[%emt 0:02:51]} O-O {[%emt 0:02:14]} 12. Bf3 {[%emt 0:02:40]} Be6 {[%emt 0:03:20]} 13. Bg5 $11 {[%emt 0:01:12]} Be7 {[%emt 0:14:30]} 14. Qd3 {[%emt 0:32:12]} Rb8 {[%emt 0:05:35]} 15. b3 {[%emt 0:01:45]} Qa5 {[%emt 0:11:39]} 16. Rac1 {[%emt 0:05:32]} Rfd8 {[%emt 0:07:59]} 17. Na4 {[%emt 0:03:54]} d4 {[%emt 0:13:58]} 18. Bf4 {[%emt 0:07:21]} Rbc8 {[%emt 0:09:29]} 19. Rxc8 {[%emt 0:30:03]} Bxc8 {[%emt 0:00:06]} 20. Rc1 {[%emt 0:01:03]} Ba6 {[%emt 0:00:22]} 21. Qd1 {[%emt 0:00:51]} Qf5 {[%emt 0:04:16]} 22. Bg3 {[%emt 0:02:48]} Bb4 {[%emt 0:05:15]} 23. Rc7 {[%emt 0:01:35]} Re8 {[%emt 0:13:22]} 24. Rxa7 {[%emt 0:00:34]} Re1+ {[%emt 0:00:16]} 25. Qxe1 {[%emt 0:00:05]} Bxe1 {[%emt 0:00:03]} 26. Rxa6 {[%emt 0:00:14]} g5 {[%emt 0:00:46]} 27. Ra8+ {[%emt 0:00:40]} Kg7 {[%emt 0:00:04]} 28. Rd8 {[%emt 0:00:59]} Qb1 {[%emt 0:00:54]} 29. h4 {[%emt 0:00:30]} Ba5+ {[%emt 0:00:17]} 30. Kh2 {[%emt 0:00:06]} Bxd8 {[%emt 0:00:08]} 31. hxg5 {[%emt 0:00:10]} Ne4 {[%emt 0:00:51]} 32. Be5+ {[%emt 0:00:21]} Kg8 {[%emt 0:01:21]} 33. Bxd4 {[%emt 0:00:28]} Nxg5 {[%emt 0:00:05]} 34. Bb7 {[%emt 0:00:40]} Qxa2 {[%emt 0:00:18]} 35. Nc5 {[%emt 0:00:47]} Ne6 {[%emt 0:00:50]} 0-1

[Event "HUN-ch U8-U18 2019"]
[Site "Balatonlelle"]
[Date "2019.06.21"]
[Round "1.3"]
[White "Szalay-Ocsak, Bank"]
[Black "Fesus, Marcell"]
[Result "1/2-1/2"]
[ECO "B41"]
[WhiteElo "1826"]
[BlackElo "1426"]
[Annotator "NA"]
[PlyCount "106"]
[EventDate "2019.06.21"]
[EventType "swiss"]
[EventCountry "HUN"]
[SourceTitle "playchess.com"]
[Source "ChessBase"]
[SourceQuality "1"]
[TimeControl "40/5400+30:1800+30"]

1. e4 {[%emt 0:00:03]} c5 {[%emt 0:00:04]} 2. Nf3 {[%emt 0:00:04]} e6 {[%emt 0:00:04]} 3. d4 {[%emt 0:00:04]} cxd4 {[%emt 0:00:03]} 4. Nxd4 {[%emt 0:00:06]} a6 {[%emt 0:00:03]} 5. c4 {[%emt 0:00:09]} d6 {[%emt 0:00:23]} 6. Nc3 {[%emt 0:00:45]} Nf6 {[%emt 0:01:05]} 7. Be3 {[%emt 0:01:03]} Qc7 {[%emt 0:01:53]} 8. Be2 {[%emt 0:02:28]} Be7 {[%emt 0:01:24]} 9. O-O {[%emt 0:01:40]} O-O {[%emt 0:14:50]} 10. Rc1 {[%emt 0:05:23]} b6 {[%emt 0:04:12]} 11. Qd2 {[%emt 0:03:54]} Bb7 {[%emt 0:02:20]} 12. f3 {[%emt 0:00:38]} Nc6 {[%emt 0:05:26]} 13. Nd5 {[%emt 0:03:29]} Qd8 {[%emt 0:05:25]} 14. Nxc6 {[%emt 0:01:51]} Bxc6 {[%emt 0:00:58]} 15. Bxb6 {[%emt 0:01:02]} Qd7 {[%emt 0:02:29]} 16. Nxe7+ {[%emt 0:01:28]} Qxe7 {[%emt 0:01:07]} 17. Rfd1 {[%emt 0:03:46]} Qb7 {[%emt 0:12:56]} 18. Ba5 {[%emt 0:13:54]} d5 {[%emt 0:07:57]} 19. cxd5 {[%emt 0:06:29]} exd5 {[%emt 0:01:34]} 20. exd5 {[%emt 0:00:42]} Nxd5 {[%emt 0:11:07]} 21. Rxc6 {[%emt 0:03:05]} Qxc6 {[%emt 0:00:21]} 22. Qxd5 {[%emt 0:00:06]} Qxd5 {[%emt 0:00:46]} 23. Rxd5 {[%emt 0:00:07]} g6 {[%emt 0:03:15]} 24. Rd6 {[%emt 0:01:19]} Rfb8 {[%emt 0:02:06]} 25. Bc3 {[%emt 0:06:37]} a5 {[%emt 0:01:06]} 26. Rd7 {[%emt 0:01:29]} a4 {[%emt 0:02:16]} 27. a3 {[%emt 0:01:25]} Rd8 {[%emt 0:01:56]} 28. Rxd8+ {[%emt 0:00:35]} Rxd8 {[%emt 0:00:03]} 29. Bb5 {[%emt 0:00:11]} Ra8 {[%emt 0:00:36]} 30. Kf2 {[%emt 0:00:07]} f5 {[%emt 0:01:17]} 31. Ke3 {[%emt 0:00:22]} Kf7 {[%emt 0:00:13]} 32. Kd4 {[%emt 0:00:12]} Ke6 {[%emt 0:00:38]} 33. Kc4 {[%emt 0:00:12]} g5 {[%emt 0:01:36]} 34. Kb4 {[%emt 0:00:07]} Kd5 {[%emt 0:00:16]} 35. Bxa4 {[%emt 0:00:11]} g4 {[%emt 0:00:15]} 36. fxg4 {[%emt 0:00:23]} fxg4 {[%emt 0:00:03]} 37. Bd1 {[%emt 0:01:24]} h5 {[%emt 0:01:11]} 38. h3 {[%emt 0:01:38]} Rb8+ {[%emt 0:00:46]} 39. Ka4 {[%emt 0:00:16]} gxh3 {[%emt 0:01:06]} 40. gxh3 {[%emt 0:00:00]} h4 {[%emt 0:00:00]} 41. b4 {[%emt 0:01:18]} Kc4 {[%emt 0:01:01]} 42. Be2+ {[%emt 0:02:49]} Kxc3 {[%emt 0:00:42]} 43. Bf3 {[%emt 0:03:10]} Kc4 {[%emt 0:03:18]} 44. Ka5 {[%emt 0:01:37]} Kb3 {[%emt 0:02:50]} 45. b5 {[%emt 0:03:19]} Kxa3 {[%emt 0:00:24]} 46. b6 {[%emt 0:00:52]} Kb3 {[%emt 0:00:18]} 47. Kb5 {[%emt 0:00:24]} Kc3 {[%emt 0:00:45]} 48. Kc5 {[%emt 0:00:33]} Kd3 {[%emt 0:00:26]} 49. b7 {[%emt 0:00:50]} Ke3 {[%emt 0:00:12]} 50. Bd5 {[%emt 0:00:59]} Kf4 {[%emt 0:00:22]} 51. Kd6 {[%emt 0:00:40]} Kg3 {[%emt 0:01:47]} 52. Kc7 {[%emt 0:00:23]} Rxb7+ {[%emt 0:00:07]} 53. Bxb7 Kxh3 {[%emt 0:00:08]} 1/2-1/2

[Event "HUN-ch U8-U18 2019"]
[Site "Balatonlelle"]
[Date "2019.06.21"]
[Round "1.4"]
[White "Virag, Balint"]
[Black "Bakos, Balazs"]
[Result "1-0"]
[ECO "B48"]
[WhiteElo "2173"]
[BlackElo "2408"]
[Annotator "NA"]
[PlyCount "77"]
[EventDate "2019.06.21"]
[EventType "swiss"]
[EventCountry "HUN"]
[SourceTitle "playchess.com"]
[Source "ChessBase"]
[SourceQuality "1"]
[TimeControl "40/5400+30:1800+30"]

1. e4 {[%emt 0:00:06]} c5 {[%emt 0:00:08]} 2. Nf3 {[%emt 0:00:08]} e6 {[%emt 0:00:16]} 3. d4 {[%emt 0:02:03]} cxd4 {[%emt 0:00:33]} 4. Nxd4 {[%emt 0:00:07]} Nc6 {[%emt 0:00:10]} 5. Nc3 {[%emt 0:00:46]} Qc7 {[%emt 0:00:31]} 6. Be3 {[%emt 0:01:13]} a6 {[%emt 0:03:06]} 7. Qf3 {[%emt 0:01:27]} Nf6 {[%emt 0:03:57]} 8. O-O-O {[%emt 0:02:05]} Be7 {[%emt 0:02:35]} 9. Qg3 {[%emt 0:02:35]} (9. Kb1 $14) 9... Qxg3 {[%emt 0:02:58]} 10. hxg3 $15 {[%emt 0:00:09]} Ng4 {[%emt 0:06:34]} 11. Nxc6 {[%emt 0:04:20]} bxc6 {[%emt 0:24:12]} 12. Bb6 {[%emt 0:01:56]} Rb8 {[%emt 0:18:34]} 13. Ba7 {[%emt 0:10:41]} Ra8 {[%emt 0:00:14]} 14. Be2 {[%emt 0:02:04]} Rxa7 {[%emt 0:07:15]} 15. Bxg4 {[%emt 0:00:17]} Bf6 {[%emt 0:12:03]} 16. Rhe1 {[%emt 0:07:57]} Bxc3 {[%emt 0:03:50]} 17. bxc3 {[%emt 0:00:10]} e5 {[%emt 0:03:10]} 18. f4 {[%emt 0:06:30]} f6 {[%emt 0:02:35]} 19. Rf1 {[%emt 0:05:02]} Ke7 {[%emt 0:02:36]} 20. fxe5 {[%emt 0:00:42]} fxe5 {[%emt 0:00:03]} 21. Rf2 {[%emt 0:02:38]} Rf8 {[%emt 0:01:17]} 22. Rxf8 {[%emt 0:01:45]} Kxf8 {[%emt 0:00:01]} 23. Rh1 {[%emt 0:00:42]} Rc7 {[%emt 0:02:54]} 24. Rxh7 {[%emt 0:00:49]} Kg8 {[%emt 0:00:12]} 25. Rh1 {[%emt 0:00:55]} d5 {[%emt 0:01:46]} 26. Bxc8 {[%emt 0:03:40]} Rxc8 {[%emt 0:00:04]} 27. Re1 {[%emt 0:09:46]} Re8 {[%emt 0:01:12]} 28. exd5 {[%emt 0:01:57]} cxd5 {[%emt 0:00:02]} 29. c4 {[%emt 0:00:54]} d4 {[%emt 0:00:53]} 30. Re4 {[%emt 0:01:56]} Kf7 {[%emt 0:00:37]} 31. Kd2 {[%emt 0:07:33]} Kf6 {[%emt 0:00:36]} 32. Kd3 {[%emt 0:01:16]} Kf5 {[%emt 0:00:29]} 33. c5 {[%emt 0:01:07]} Rc8 {[%emt 0:00:33]} 34. g4+ {[%emt 0:00:13]} Ke6 {[%emt 0:00:27]} 35. Kc4 {[%emt 0:00:16]} Rc7 {[%emt 0:00:32]} 36. Re1 {[%emt 0:00:17]} Rc8 {[%emt 0:00:31]} 37. Rb1 {[%emt 0:00:09]} Rc6 {[%emt 0:00:32]} 38. Rb6 {[%emt 0:00:35]} Kd7 {[%emt 0:00:27]} 39. Kd5 {[%emt 0:01:16]} 1-0

[Event "HUN-ch U8-U18 2019"]
[Site "Balatonlelle"]
[Date "2019.06.21"]
[Round "1.4"]
[White "Gergely, Daniel"]
[Black "Barsi, Botond"]
[Result "0-1"]
[ECO "B29"]
[WhiteElo "1427"]
[BlackElo "1850"]
[Annotator "NA"]
[PlyCount "84"]
[EventDate "2019.06.21"]
[EventType "swiss"]
[EventCountry "HUN"]
[SourceTitle "playchess.com"]
[Source "ChessBase"]
[SourceQuality "1"]
[TimeControl "40/5400+30:1800+30"]

1. e4 {[%emt 0:00:03]} c5 {[%emt 0:00:01]} 2. Nf3 {[%emt 0:00:11]} Nf6 {[%emt 0:00:03]} 3. Nc3 {[%emt 0:02:22]} Nc6 {[%emt 0:00:14]} 4. d4 {[%emt 0:00:10]} d5 {[%emt 0:00:06]} 5. exd5 {[%emt 0:05:27]} Nxd5 {[%emt 0:00:18]} 6. Nxd5 {[%emt 0:00:05]} Qxd5 {[%emt 0:00:06]} 7. dxc5 {[%emt 0:01:37]} Qxd1+ {[%emt 0:00:08]} 8. Kxd1 {[%emt 0:00:05]} e5 {[%emt 0:00:08]} 9. Bb5 {[%emt 0:01:49]} Bg4 {[%emt 0:00:15]} 10. Bxc6+ {[%emt 0:01:06]} bxc6 {[%emt 0:00:18]} 11. h3 {[%emt 0:00:12]} Bxf3+ {[%emt 0:00:28]} 12. gxf3 {[%emt 0:00:07]} Bxc5 {[%emt 0:00:21]} 13. Be3 {[%emt 0:00:44]} Bd6 {[%emt 0:05:58]} 14. Ke2 {[%emt 0:00:25]} f5 {[%emt 0:02:57]} 15. Rhd1 {[%emt 0:00:49]} Ke7 {[%emt 0:00:23]} 16. c4 {[%emt 0:05:33]} f4 {[%emt 0:17:05]} 17. Bd2 {[%emt 0:00:28]} Rhf8 {[%emt 0:00:51]} 18. Bc3 {[%emt 0:00:48]} Rf5 {[%emt 0:00:53]} 19. Kf1 {[%emt 0:03:42]} Raf8 {[%emt 0:05:46]} 20. b4 {[%emt 0:06:39]} Rh5 {[%emt 0:01:14]} 21. Rd3 {[%emt 0:12:01]} Rxh3 {[%emt 0:01:23]} 22. Kg2 {[%emt 0:00:19]} Rh6 {[%emt 0:00:59]} 23. Rad1 {[%emt 0:00:34]} Rg6+ {[%emt 0:04:54]} 24. Kf1 {[%emt 0:00:08]} Rc8 {[%emt 0:05:07]} 25. c5 {[%emt 0:03:20]} Bc7 {[%emt 0:02:00]} 26. Rd7+ {[%emt 0:00:41]} Ke6 {[%emt 0:03:53]} 27. a4 {[%emt 0:00:39]} a6 {[%emt 0:00:31]} 28. b5 {[%emt 0:08:03]} cxb5 {[%emt 0:02:32]} 29. axb5 {[%emt 0:00:06]} axb5 {[%emt 0:00:06]} 30. c6 {[%emt 0:00:37]} Bb8 {[%emt 0:06:54]} 31. Rd8 {[%emt 0:05:41]} Rxc6 {[%emt 0:00:15]} 32. Rxb8 {[%emt 0:00:07]} Rxc3 {[%emt 0:00:04]} 33. Rxb5 {[%emt 0:00:05]} Rxf3 {[%emt 0:00:42]} 34. Re1 {[%emt 0:00:30]} Rg5 {[%emt 0:00:27]} 35. Re4 {[%emt 0:00:15]} Kf6 {[%emt 0:02:06]} 36. Ke2 {[%emt 0:00:46]} Ra3 {[%emt 0:02:30]} 37. Rb6+ {[%emt 0:01:48]} Kf5 {[%emt 0:00:00]} 38. Rbb4 {[%emt 0:00:08]} h5 {[%emt 0:00:00]} 39. f3 {[%emt 0:00:21]} Rg2+ {[%emt 0:00:01]} 40. Kf1 {[%emt 0:00:00]} Rc2 {[%emt 0:00:00]} 41. Re1 {[%emt 0:00:32]} Rxf3+ {[%emt 0:00:53]} 42. Kg1 {[%emt 0:00:12]} Rg3+ {[%emt 0:01:20]} 0-1